fUSD/lending_fUSD_20250309
["ID","MTS","AMOUNT","RATE_DAILY","PERIOD"]
[355719495,1741500654541,-504.21256498,9.323e-05,2]
[355719496,1741500654551,-5273.5106484,9.337e-05,2]
[355719497,1741500654562,-3620.3791036,9.337e-05,2]
[355719498,1741500654572,-150.0,9.339e-05,2]
[355719499,1741500654581,-500.0,9.341e-05,2]
[355719500,1741500654591,-937.82461428,9.342e-05,3]
[355719501,1741500654601,-241525.73581594,9.342e-05,2]
[355719502,1741500654612,-1586.22,9.342e-05,2]
[355719503,1741500654622,-500.0,9.342e-05,2]
[355719504,1741500654632,-500.0,9.342e-05,2]
[355719505,1741500654642,-500.0,9.342e-05,2]
[355719506,1741500654652,-500.0,9.342e-05,2]
[355719507,1741500654661,-500.0,9.342e-05,2]
[355719508,1741500654671,-500.0,9.342e-05,2]
[355719509,1741500654682,-500.0,9.342e-05,2]
[355719510,1741500654691,-500.0,9.342e-05,2]
[355719511,1741500654705,-500.0,9.342e-05,2]
[355719512,1741500654715,-500.0,9.342e-05,2]
[355719513,1741500654725,-500.0,9.342e-05,2]
[355719514,1741500654735,-500.0,9.342e-05,2]
[355719515,1741500654745,-500.0,9.342e-05,2]
[355719516,1741500654755,-500.0,9.342e-05,2]
[355719517,1741500654764,-500.0,9.342e-05,2]
[355719518,1741500654774,-500.0,9.342e-05,2]
[355719519,1741500654784,-500.0,9.342e-05,2]
[355719520,1741500654795,-500.0,9.342e-05,2]
[355719521,1741500654806,-500.0,9.342e-05,2]
[355719522,1741500654816,-347.69815931,9.342e-05,2]
[355719523,1741500654826,-175.47,9.342e-05,2]
[355719524,1741500654835,-150.0,9.342e-05,2]
[355719525,1741500654845,-841.00032072,9.342e-05,2]
[355719526,1741500654856,-48698.85683232,9.342e-05,2]
[355719527,1741500654876,-668.30843146,9.342e-05,2]
[355719528,1741500654892,-658.63300375,9.342e-05,2]
[355719529,1741500654903,-432.19494406,9.342e-05,2]
[355719530,1741500654932,-343.53915486,9.342e-05,2]
[355719531,1741500655254,-841.88855715,9.342e-05,2]
[355719534,1741500960889,500.0,0.00028,120]
[355719535,1741500976400,251.0,0.00028,120]
[355719539,1741501537905,200.0,0.00028,120]
[355719544,1741501540153,200.0,0.00028,120]
[355719545,1741501558161,200.0,0.00028,120]
[355719546,1741501559281,200.0,0.00028,120]
[355719547,1741501560266,200.0,0.00028,120]
[355719548,1741501560607,200.0,0.00028,120]
[355719690,1741501787712,-2146.99,8.219e-05,2]
[355719691,1741501787737,-300.0,8.242e-05,2]
[355719692,1741501787761,-23553.01,8.243e-05,2]
[355719715,1741501832214,-286.62,8.243e-05,2]
[355719716,1741501832225,-150.0,8.268e-05,2]
[355719717,1741501832234,-47.92471875,8.293e-05,2]
[355719718,1741501832289,-261.82245375,8.293e-05,2]
[355719719,1741501832368,-599.29702508,8.293e-05,2]
[355719720,1741501832379,-109.94580242,8.293e-05,2]
[355719721,1741501832389,-168.89,8.385e-05,2]
[355719722,1741501832398,-1021.16419758,8.46e-05,2]
[355719723,1741501832447,-978.83580242,8.46e-05,2]
[355719724,1741501832456,-500.0,8.481e-05,3]
[355719725,1741501832466,-250.0,8.483e-05,2]
[355719726,1741501832475,-300.0,8.704e-05,2]
[355719727,1741501832484,-559.9155,8.705e-05,2]
[355719728,1741501832493,-4756.42,8.705e-05,2]
[355719729,1741501832503,-150.0,8.71e-05,2]
[355719730,1741501832512,-150.0,8.803e-05,2]
[355719731,1741501832521,-500.0,8.804e-05,2]
[355719732,1741501832530,-500.0,8.804e-05,2]
[355719733,1741501832540,-506.61762918,8.804e-05,2]
[355719734,1741501832549,-500.0,8.804e-05,2]
[355719735,1741501832558,-500.0,8.804e-05,2]
[355719736,1741501832568,-292.03,8.804e-05,2]
[355719737,1741501832577,-500.0,8.804e-05,2]
[355719738,1741501832586,-254.33708857,8.804e-05,2]
[355719739,1741501832597,-500.0,8.804e-05,2]
[355719740,1741501832606,-500.0,8.804e-05,2]
[355719741,1741501832616,-500.0,8.804e-05,2]
[355719743,1741501832626,-500.0,8.804e-05,2]
[355719745,1741501832639,-1033.91,8.804e-05,2]
[355719747,1741501832648,-500.0,8.804e-05,2]
[355719750,1741501832658,-500.0,8.804e-05,2]
[355719752,1741501832667,-377.49,8.804e-05,2]
[355719753,1741501832676,-500.0,8.804e-05,2]
[355719756,1741501832685,-500.0,8.804e-05,2]
[355719758,1741501832695,-535.44387775,8.805e-05,2]
[355719760,1741501832704,-500.0,8.805e-05,2]
[355719762,1741501832714,-507.25440294,8.805e-05,2]
[355719764,1741501832723,-500.0,8.805e-05,2]
[355719766,1741501832732,-500.0,8.805e-05,2]
[355719767,1741501832741,-500.0,8.805e-05,2]
[355719769,1741501832751,-500.0,8.805e-05,2]
[355719771,1741501832760,-500.0,8.805e-05,2]
[355719773,1741501832769,-503.22782471,8.805e-05,2]
[355719775,1741501832778,-540.61040207,8.805e-05,2]
[355719777,1741501832787,-620.23583856,8.805e-05,2]
[355719779,1741501832797,-514.58837539,8.805e-05,2]
[355719781,1741501832806,-500.0,8.805e-05,2]
[355719783,1741501832815,-511.23540697,8.805e-05,2]
[355719784,1741501832824,-500.0,8.805e-05,2]
[355719785,1741501832834,-500.0,8.805e-05,2]
[355719786,1741501832843,-150.0,9.041e-05,2]
[355719787,1741501832853,-150.0,9.067e-05,2]
[355719788,1741501832862,-500.0,9.078e-05,2]
[355719790,1741501832871,-500.0,9.078e-05,2]
[355719792,1741501832880,-500.0,9.078e-05,2]
[355719794,1741501832889,-500.0,9.078e-05,2]
[355719796,1741501832899,-500.0,9.078e-05,2]
[355719798,1741501832908,-500.0,9.078e-05,2]
[355719799,1741501832917,-500.0,9.078e-05,2]
[355719800,1741501832926,-337.29,9.078e-05,2]
[355719801,1741501832935,-1033.91,9.078e-05,2]
[355719802,1741501832944,-408.92,9.078e-05,2]
[355719803,1741501832954,-500.0,9.078e-05,2]
[355719804,1741501832963,-198.8,9.078e-05,2]
[355719805,1741501832972,-2787.1114,9.235e-05,2]
[355719806,1741501832982,-185.28,9.3e-05,2]
[355719807,1741501832992,-500.0,9.323e-05,2]
[355719808,1741501833001,-1018.99,9.33e-05,2]
[355719809,1741501833011,-500.0,9.335e-05,2]
[355719810,1741501833020,-185.00572626,9.335e-05,2]
[355719811,1741501833033,-314.99427374,9.335e-05,2]
[355719812,1741501833042,-704.97,9.335e-05,2]
[355719813,1741501833052,-500.0,9.335e-05,2]
[355719814,1741501833062,-630.21,9.335e-05,2]
[355719815,1741501833073,-502.16257956,9.335e-05,2]
[355719816,1741501833082,-497.81415793,9.335e-05,2]
[355719817,1741501833096,-500.0,9.335e-05,2]
[355719818,1741501833106,-500.0,9.335e-05,2]
[355719819,1741501833117,-500.0,9.335e-05,2]
[355719820,1741501833126,-500.0,9.335e-05,2]
[355719821,1741501833137,-500.0,9.335e-05,2]
[355719822,1741501833147,-500.0,9.335e-05,2]
[355719823,1741501833156,-500.0,9.335e-05,2]
[355719824,1741501833166,-500.0,9.335e-05,2]
[355719825,1741501833176,-500.0,9.335e-05,2]
[355719826,1741501833186,-500.0,9.335e-05,2]
[355719827,1741501833195,-500.0,9.335e-05,2]
[355719828,1741501833204,-500.0,9.335e-05,2]
[355719829,1741501833214,-610.39621003,9.335e-05,2]
[355719830,1741501833224,-514.54009466,9.335e-05,2]
[355719831,1741501833233,-500.0,9.335e-05,2]
[355719832,1741501833243,-500.0,9.335e-05,2]
[355719833,1741501833252,-500.0,9.335e-05,2]
[355719834,1741501833262,-500.0,9.335e-05,2]
[355719835,1741501833271,-500.0,9.335e-05,2]
[355719836,1741501833281,-500.0,9.335e-05,2]
[355719837,1741501833291,-500.0,9.335e-05,2]
[355719838,1741501833300,-500.0,9.335e-05,2]
[355719839,1741501833309,-500.0,9.335e-05,2]
[355719840,1741501833320,-500.0,9.335e-05,2]
[355719841,1741501833329,-500.0,9.335e-05,2]
[355719842,1741501833339,-500.0,9.335e-05,2]
[355719843,1741501833349,-500.0,9.335e-05,2]
[355719844,1741501833359,-500.0,9.335e-05,2]
[355719845,1741501833369,-500.0,9.335e-05,2]
[355719846,1741501833379,-500.0,9.335e-05,2]
[355719847,1741501833389,-500.0,9.335e-05,2]
[355719848,1741501833399,-500.0,9.335e-05,2]
[355719849,1741501833409,-500.0,9.335e-05,2]
[355719850,1741501833419,-498.11946697,9.335e-05,2]
[355719851,1741501833428,-500.0,9.335e-05,2]
[355719852,1741501833438,-500.0,9.335e-05,2]
[355719853,1741501833448,-500.0,9.335e-05,2]
[355719854,1741501833458,-500.0,9.335e-05,2]
[355719855,1741501833468,-500.0,9.335e-05,2]
[355719856,1741501833479,-508.98039524,9.335e-05,2]
[355719857,1741501833489,-411.45107067,9.335e-05,2]
[355719858,1741501833499,-500.0,9.335e-05,2]
[355719859,1741501833509,-500.0,9.335e-05,2]
[355719860,1741501833519,-650.528271,9.335e-05,2]
[355719861,1741501833529,-500.0,9.335e-05,2]
[355719862,1741501833539,-500.0,9.335e-05,2]
[355719863,1741501833549,-500.0,9.335e-05,2]
[355719864,1741501833559,-500.0,9.335e-05,2]
[355719865,1741501833569,-500.0,9.335e-05,2]
[355719866,1741501833579,-500.0,9.335e-05,2]
[355719867,1741501833588,-870.932229,9.335e-05,2]
[355719868,1741501833598,-500.0,9.335e-05,2]
[355719869,1741501833608,-500.0,9.335e-05,2]
[355719870,1741501833618,-500.0,9.335e-05,2]
[355719871,1741501833628,-500.0,9.335e-05,2]
[355719872,1741501833638,-201.83799411,9.335e-05,2]
[355719873,1741501833658,-298.16200589,9.335e-05,2]
[355719874,1741501833668,-500.0,9.335e-05,2]
[355719875,1741501833677,-500.0,9.335e-05,2]
[355719876,1741501833687,-49.93930863,9.335e-05,2]
[355719877,1741501833713,-366.77,9.335e-05,2]
[355719878,1741501833724,-120.62069137,9.335e-05,2]
[355719879,1741501833734,-384.12930863,9.335e-05,2]
[355719881,1741501838282,-115.87069137,9.335e-05,2]
[355719882,1741501838292,-321.83874198,9.335e-05,2]
[355719883,1741501838304,-178.16125802,9.335e-05,2]
[355719884,1741501838314,-197.86006208,9.335e-05,2]
[355719885,1741501838379,-302.13993792,9.335e-05,2]
[355719886,1741501838388,-28.2355192,9.335e-05,2]
[355719887,1741501838459,-471.7644808,9.335e-05,2]
[355719888,1741501838468,-500.0,9.335e-05,2]
[355719889,1741501838478,-507.62,9.335e-05,2]
[355719890,1741501838488,-500.0,9.335e-05,2]
[355719891,1741501838498,-500.0,9.335e-05,2]
[355719892,1741501838507,-152.2754892,9.335e-05,2]
[355719893,1741501838519,-347.7245108,9.335e-05,2]
[355719894,1741501838529,-513.23207676,9.335e-05,2]
[355719895,1741501838538,-500.0,9.335e-05,2]
[355719896,1741501838548,-500.0,9.335e-05,2]
[355719897,1741501838557,-500.0,9.335e-05,2]
[355719898,1741501838567,-39.04341244,9.335e-05,2]
[355719899,1741501838590,-460.95658756,9.335e-05,2]
[355719900,1741501838599,-496.28582164,9.335e-05,2]
[355720012,1741501840676,-23.27751234,9.335e-05,2]
[355720014,1741501840685,-500.0,9.335e-05,2]
[355720016,1741501840695,-500.0,9.335e-05,2]
[355720018,1741501840703,-500.0,9.335e-05,2]
[355720020,1741501840713,-500.0,9.335e-05,2]
[355720022,1741501840722,-628.18,9.335e-05,2]
[355720024,1741501840731,-709.79,9.335e-05,2]
[355720025,1741501840740,-500.0,9.335e-05,2]
[355720027,1741501840750,-500.0,9.335e-05,2]
[355720029,1741501840759,-512.91936311,9.335e-05,2]
[355720031,1741501840769,-500.0,9.335e-05,2]
[355720033,1741501840778,-500.0,9.335e-05,2]
[355720035,1741501840788,-500.0,9.335e-05,2]
[355720037,1741501840797,-500.0,9.335e-05,2]
[355720039,1741501840807,-507.77,9.335e-05,2]
[355720041,1741501840816,-500.0,9.335e-05,2]
[355720043,1741501840825,-500.0,9.335e-05,2]
[355720045,1741501840834,-2064.35,9.335e-05,2]
[355720047,1741501840843,-481.61849415,9.335e-05,2]
[355720178,1741501843232,-439.6789258,9.335e-05,2]
[355720232,1741501845144,-344.94220916,9.335e-05,2]
[355720237,1741501846398,-396.06037089,9.335e-05,2]
[355720238,1741501846408,-636.04,9.335e-05,2]
[355720239,1741501846418,-948.07,9.335e-05,2]
[355720240,1741501846429,-500.0,9.335e-05,2]
[355720241,1741501846438,-500.0,9.335e-05,2]
[355720242,1741501846448,-1186.69,9.335e-05,2]
[355720243,1741501846457,-500.0,9.335e-05,2]
[355720244,1741501846467,-500.0,9.335e-05,2]
[355720245,1741501846476,-500.0,9.335e-05,2]
[355720246,1741501846486,-734.8,9.335e-05,2]
[355720247,1741501846495,-663.38,9.335e-05,2]
[355720248,1741501846506,-256.91812378,9.335e-05,2]
[355720249,1741501846525,-585.70187622,9.335e-05,2]
[355720250,1741501846534,-217.94852235,9.335e-05,2]
[355720251,1741501846543,-500.0,9.335e-05,2]
[355720252,1741501846552,-1426.53,9.335e-05,2]
[355720253,1741501846562,-500.0,9.335e-05,2]
[355720254,1741501846570,-581.79964968,9.335e-05,2]
[355720255,1741501846580,-887.75,9.335e-05,2]
[355720256,1741501846589,-2042.64,9.335e-05,2]
[355720257,1741501846599,-500.0,9.335e-05,2]
[355720258,1741501846608,-500.0,9.335e-05,2]
[355720259,1741501846617,-2241.13,9.335e-05,2]
[355720260,1741501846627,-921.52,9.335e-05,2]
[355720261,1741501846636,-500.0,9.335e-05,2]
[355720262,1741501846645,-500.0,9.335e-05,2]
[355720263,1741501846655,-614.85,9.335e-05,2]
[355720264,1741501846665,-500.0,9.335e-05,2]
[355720265,1741501846674,-250.32995175,9.335e-05,2]
[355720287,1741502478636,10000.0,0.00028,120]
[355720288,1741502490083,10000.0,0.00028,120]
[355720290,1741502574395,126649.0,0.00028,120]
[355720385,1741503037394,-656.96143611,8.219e-05,2]
[355720389,1741503037408,-1403.94856389,8.219e-05,2]
[355720390,1741503037419,-250.0,8.384e-05,2]
[355720391,1741503037431,-184.12295903,8.406e-05,2]
[355720883,1741503042644,-815.87704097,8.406e-05,2]
[355720885,1741503042654,-23900.0,8.433e-05,2]
[355720887,1741503042664,-484.47,8.453e-05,2]
[355720889,1741503042675,-907.36,8.494e-05,2]
[355720891,1741503042685,-337.73,8.635e-05,3]
[355720893,1741503042695,-415.0,9e-05,2]
[355720895,1741503042706,-150.0,9.068e-05,2]
[355720897,1741503042715,-6147.3528,9.235e-05,2]
[355720899,1741503042726,-150.0,9.285e-05,2]
[355720901,1741503042735,-205.12893203,9.285e-05,2]
[355720903,1741503042744,-1734.746,9.285e-05,2]
[355720905,1741503042754,-150.0,9.286e-05,2]
[355720907,1741503042763,-500.0,9.287e-05,2]
[355720909,1741503042773,-500.0,9.287e-05,2]
[355720911,1741503042784,-500.0,9.287e-05,2]
[355720913,1741503042794,-500.0,9.287e-05,2]
[355720915,1741503042804,-165.85193231,9.287e-05,2]
[355720917,1741503042815,-500.0,9.287e-05,2]
[355720919,1741503042825,-500.0,9.287e-05,2]
[355720921,1741503042835,-500.0,9.287e-05,2]
[355720923,1741503042845,-500.0,9.287e-05,2]
[355720925,1741503042854,-500.0,9.287e-05,2]
[355720927,1741503042864,-500.0,9.287e-05,2]
[355720929,1741503042874,-500.0,9.287e-05,2]
[355720931,1741503042884,-500.0,9.287e-05,2]
[355720933,1741503042893,-500.0,9.287e-05,2]
[355720935,1741503042903,-500.0,9.287e-05,2]
[355720937,1741503042912,-500.0,9.287e-05,2]
[355720939,1741503042922,-500.0,9.287e-05,2]
[355720941,1741503042932,-500.0,9.287e-05,2]
[355720943,1741503042942,-500.0,9.287e-05,2]
[355720945,1741503042952,-500.0,9.287e-05,2]
[355720947,1741503042961,-500.0,9.287e-05,2]
[355720949,1741503042971,-500.0,9.287e-05,2]
[355720951,1741503042979,-500.0,9.287e-05,2]
[355720953,1741503042989,-363.90365659,9.287e-05,2]
[355720955,1741503042998,-500.0,9.287e-05,2]
[355720957,1741503043007,-500.0,9.287e-05,2]
[355720959,1741503043017,-445.75626138,9.287e-05,2]
[355720961,1741503043026,-500.0,9.287e-05,2]
[355720963,1741503043035,-500.0,9.287e-05,2]
[355720965,1741503043044,-500.0,9.287e-05,2]
[355720967,1741503043054,-500.0,9.287e-05,2]
[355720969,1741503043063,-500.0,9.287e-05,2]
[355720971,1741503043072,-500.0,9.287e-05,2]
[355720973,1741503043082,-500.0,9.287e-05,2]
[355720975,1741503043091,-500.0,9.287e-05,2]
[355720977,1741503043100,-500.0,9.287e-05,2]
[355720979,1741503043109,-500.0,9.287e-05,2]
[355720981,1741503043119,-500.0,9.287e-05,2]
[355720983,1741503043127,-500.0,9.287e-05,2]
[355720985,1741503043136,-500.0,9.287e-05,2]
[355720987,1741503043146,-500.0,9.287e-05,2]
[355720989,1741503043154,-500.0,9.287e-05,2]
[355720991,1741503043163,-500.0,9.287e-05,2]
[355720993,1741503043173,-500.0,9.287e-05,2]
[355720995,1741503043183,-500.0,9.287e-05,2]
[355720997,1741503043192,-500.0,9.287e-05,2]
[355720999,1741503043203,-506.34871449,9.287e-05,2]
[355721001,1741503043212,-500.0,9.287e-05,2]
[355721003,1741503043221,-500.0,9.287e-05,2]
[355721005,1741503043231,-500.0,9.287e-05,2]
[355721007,1741503043240,-500.0,9.287e-05,2]
[355721009,1741503043249,-500.0,9.287e-05,2]
[355721011,1741503043258,-500.0,9.287e-05,2]
[355721013,1741503043267,-500.0,9.287e-05,2]
[355721015,1741503043276,-500.0,9.287e-05,2]
[355721017,1741503043285,-500.0,9.287e-05,2]
[355721019,1741503043294,-500.0,9.287e-05,2]
[355721021,1741503043303,-500.0,9.287e-05,2]
[355721023,1741503043312,-500.0,9.287e-05,2]
[355721025,1741503043322,-500.0,9.287e-05,2]
[355721027,1741503043331,-500.0,9.287e-05,2]
[355721029,1741503043339,-500.0,9.287e-05,2]
[355721031,1741503043349,-500.0,9.287e-05,2]
[355721033,1741503043358,-500.0,9.287e-05,2]
[355721035,1741503043367,-500.0,9.287e-05,2]
[355721037,1741503043376,-500.0,9.287e-05,2]
[355721039,1741503043385,-500.0,9.287e-05,2]
[355721041,1741503043395,-500.0,9.287e-05,2]
[355721043,1741503043405,-500.0,9.287e-05,2]
[355721045,1741503043413,-500.0,9.287e-05,2]
[355721047,1741503043423,-500.0,9.287e-05,2]
[355721049,1741503043432,-500.0,9.287e-05,2]
[355721051,1741503043441,-500.0,9.287e-05,2]
[355721052,1741503043450,-500.0,9.287e-05,2]
[355721054,1741503043459,-500.0,9.287e-05,2]
[355721056,1741503043468,-500.0,9.287e-05,2]
[355721058,1741503043477,-500.0,9.287e-05,2]
[355721060,1741503043486,-500.0,9.287e-05,2]
[355721063,1741503043497,-500.0,9.287e-05,2]
[355721065,1741503043510,-500.0,9.287e-05,2]
[355721066,1741503043518,-500.0,9.287e-05,2]
[355721068,1741503043527,-500.0,9.287e-05,2]
[355721070,1741503043536,-500.0,9.287e-05,2]
[355721072,1741503043546,-500.0,9.287e-05,2]
[355721075,1741503043555,-500.0,9.287e-05,2]
[355721076,1741503043564,-500.0,9.287e-05,2]
[355721078,1741503043574,-500.0,9.287e-05,2]
[355721081,1741503043585,-500.0,9.287e-05,2]
[355721083,1741503043595,-500.0,9.287e-05,2]
[355721085,1741503043605,-500.0,9.287e-05,2]
[355721087,1741503043614,-500.0,9.287e-05,2]
[355721089,1741503043624,-824.43,9.287e-05,2]
[355721091,1741503043634,-500.0,9.287e-05,2]
[355721093,1741503043643,-500.0,9.287e-05,2]
[355721095,1741503043653,-500.0,9.287e-05,2]
[355721097,1741503043663,-500.0,9.287e-05,2]
[355721099,1741503043672,-500.0,9.287e-05,2]
[355721101,1741503043681,-500.0,9.287e-05,2]
[355721103,1741503043691,-500.0,9.287e-05,2]
[355721105,1741503043700,-579.74,9.287e-05,2]
[355721107,1741503043710,-1079.67,9.287e-05,2]
[355721109,1741503043720,-500.0,9.287e-05,2]
[355721111,1741503043730,-509.7740912,9.287e-05,2]
[355721113,1741503043739,-500.0,9.287e-05,2]
[355721115,1741503043748,-1384.75,9.287e-05,2]
[355721117,1741503043757,-507.48394204,9.287e-05,2]
[355721119,1741503043767,-500.0,9.287e-05,2]
[355721121,1741503043776,-500.0,9.287e-05,2]
[355721123,1741503043786,-1847.2,9.287e-05,2]
[355721125,1741503043796,-500.0,9.287e-05,2]
[355721127,1741503043807,-500.0,9.287e-05,2]
[355721129,1741503043817,-500.0,9.287e-05,2]
[355721131,1741503043826,-1296.55,9.287e-05,2]
[355721133,1741503043836,-437.84728572,9.287e-05,2]
[355721135,1741503043846,-514.13625868,9.287e-05,2]
[355721137,1741503043855,-500.0,9.287e-05,2]
[355721139,1741503043865,-221.25720253,9.287e-05,2]
[355721141,1741503043874,-500.0,9.287e-05,2]
[355721143,1741503043883,-392.23027295,9.287e-05,2]
[355721145,1741503043892,-1035.73,9.287e-05,2]
[355721147,1741503043902,-524.85123407,9.287e-05,2]
[355721149,1741503043911,-2490.17,9.287e-05,2]
[355721151,1741503043920,-500.0,9.287e-05,2]
[355721153,1741503043930,-1728.22,9.287e-05,2]
[355721155,1741503043940,-1573.28,9.287e-05,2]
[355721157,1741503043949,-333.34477215,9.287e-05,2]
[355721159,1741503043958,-972.27,9.287e-05,2]
[355721161,1741503043968,-500.0,9.287e-05,2]
[355721163,1741503043978,-744.77,9.287e-05,2]
[355721165,1741503043986,-500.0,9.287e-05,2]
[355721167,1741503043995,-1975.91,9.287e-05,2]
[355721169,1741503044005,-517.51245933,9.287e-05,2]
[355721171,1741503044014,-651.89,9.287e-05,2]
[355721173,1741503044024,-541.7,9.287e-05,2]
[355721175,1741503044033,-500.0,9.287e-05,2]
[355721177,1741503044043,-513.45453224,9.287e-05,2]
[355721179,1741503044052,-192.87639116,9.287e-05,2]
[355721181,1741503044061,-500.0,9.287e-05,2]
[355721183,1741503044070,-986.99,9.287e-05,2]
[355721185,1741503044079,-500.0,9.287e-05,2]
[355721187,1741503044089,-500.0,9.287e-05,2]
[355721189,1741503044099,-500.0,9.287e-05,2]
[355721191,1741503044108,-4445.9,9.287e-05,2]
[355721193,1741503044117,-500.0,9.287e-05,2]
[355721195,1741503044126,-475.78380872,9.287e-05,2]
[355721390,1741503046037,-56.01619128,9.287e-05,2]
[355721392,1741503046047,-158.31852532,9.287e-05,2]
[355721394,1741503046056,-255.35658544,9.287e-05,2]
[355721435,1741503046508,-281.40904348,9.287e-05,2]
[355721437,1741503046518,-150.31595652,9.287e-05,2]
[355721440,1741503046529,-611.43404348,9.287e-05,2]
[355721442,1741503046540,-500.0,9.287e-05,2]
[355721444,1741503046551,-1230.68,9.287e-05,2]
[355721446,1741503046560,-500.0,9.287e-05,2]
[355721448,1741503046570,-500.0,9.287e-05,2]
[355721450,1741503046580,-717.29,9.287e-05,2]
[355721452,1741503046591,-500.0,9.287e-05,2]
[355721454,1741503046602,-264.51888761,9.287e-05,2]
[355721456,1741503046611,-500.0,9.287e-05,2]
[355721458,1741503046621,-500.0,9.287e-05,2]
[355721460,1741503046631,-500.0,9.287e-05,2]
[355721462,1741503046640,-500.0,9.287e-05,2]
[355721464,1741503046650,-500.0,9.287e-05,2]
[355721466,1741503046659,-500.0,9.287e-05,2]
[355721468,1741503046669,-500.0,9.287e-05,2]
[355721470,1741503046679,-500.0,9.287e-05,2]
[355721472,1741503046688,-500.0,9.287e-05,2]
[355721474,1741503046698,-500.0,9.287e-05,2]
[355721476,1741503046707,-500.0,9.287e-05,2]
[355721478,1741503046716,-180.8291944,9.287e-05,2]
[355721480,1741503046727,-383.39945226,9.287e-05,2]
[355721483,1741503046738,-758.92818644,9.287e-05,2]
[355721485,1741503046748,-247888.8740379,9.288e-05,2]
[355721487,1741503046757,-3587.76488857,9.288e-05,2]
[355721819,1741503228599,-1104.87784,8.178e-05,2]
[355721900,1741504231666,-300.0,8.166e-05,2]
[355721901,1741504231676,-5358.00951555,8.167e-05,2]
[355721902,1741504231687,-6125.92091325,8.167e-05,2]
[355721903,1741504231800,-2906.4810712,8.167e-05,2]
[355721904,1741504231810,-2000.0,8.181e-05,2]
[355721905,1741504231819,-1957.86,8.219e-05,2]
[355721906,1741504231829,-550.0,8.255e-05,2]
[355721907,1741504231839,-181.65,8.261e-05,2]
[355721908,1741504231848,-15109.23678236,8.266e-05,2]
[355721909,1741504231944,-1650.0,8.266e-05,2]
[355721910,1741504231956,-1359.45019934,8.266e-05,2]
[355721911,1741504231967,-251.73303789,8.266e-05,2]
[355721912,1741504231979,-5529.57998041,8.266e-05,2]
[355721913,1741504231988,-1000.0,8.268e-05,2]
[355721914,1741504231997,-667.14,8.335e-05,2]
[355721915,1741504232006,-200.0,8.389e-05,2]
[355721916,1741504232016,-1805.19,8.412e-05,2]
[355721917,1741504232026,-162.24,8.465e-05,2]
[355721918,1741504232035,-344.68,8.578e-05,2]
[355721919,1741504232044,-1274.92,8.578e-05,2]
[355721920,1741504232054,-181.65,8.757e-05,2]
[355721921,1741504232063,-420.0,8.982e-05,2]
[355721922,1741504232073,-150.0,8.988e-05,2]
[355721924,1741504232082,-500.0,8.989e-05,2]
[355721926,1741504232093,-500.0,8.989e-05,2]
[355721928,1741504232102,-500.0,8.989e-05,2]
[355721930,1741504232111,-500.0,8.989e-05,2]
[355721932,1741504232121,-500.0,8.989e-05,2]
[355721934,1741504232130,-500.0,8.989e-05,2]
[355721936,1741504232139,-500.0,8.989e-05,2]
[355721938,1741504232149,-500.0,8.989e-05,2]
[355721940,1741504232158,-500.0,8.989e-05,2]
[355721942,1741504232167,-500.0,8.989e-05,2]
[355721944,1741504232177,-500.0,8.989e-05,2]
[355721946,1741504232186,-500.0,8.989e-05,2]
[355721948,1741504232195,-500.0,8.989e-05,2]
[355721950,1741504232204,-500.0,8.989e-05,2]
[355721952,1741504232214,-500.0,8.989e-05,2]
[355721954,1741504232222,-426.83,8.989e-05,2]
[355721956,1741504232231,-500.0,8.989e-05,2]
[355721958,1741504232241,-500.0,8.989e-05,2]
[355721960,1741504232251,-500.0,8.989e-05,2]
[355721962,1741504232260,-500.0,8.989e-05,2]
[355721964,1741504232269,-500.0,8.989e-05,2]
[355721966,1741504232279,-500.0,8.989e-05,2]
[355721968,1741504232288,-500.0,8.989e-05,2]
[355721970,1741504232298,-500.0,8.989e-05,2]
[355721972,1741504232307,-500.0,8.989e-05,2]
[355721974,1741504232316,-500.0,8.989e-05,2]